Cogmind - Beta 16 @@@ ROGUE MODE // 2025.10.29 @ 01:46:18 Player: kiul Result: Destroyed by P-70 Sage with Tesla Rifle Performance ------------- Evolutions (6) 3000 Regions Visited (9) 1800 Robots Destroyed (77) 385 Value Destroyed (2700) 2700 Prototype IDs (10) 200 Alien Tech Used (0) 0 Bonus (200) 200 TOTAL SCORE: 8285 Bonus ------- Pacifist 200 Cogmind --------- Core Integrity 0/1150 Matter 279/300 Energy 100/100 System Corruption 16% Temperature Cool (0) Movement Core (50) Location -4/Factory Parts ------- > --- POWER (3) -------- (None) > --- PROPULSION (5) --- (None) > --- UTILITY (8) ------ Enhanced Optical Array Advanced Signal Interpreter Armor Integrity Analyzer > --- WEAPON (3) ------- (None) > --- INVENTORY (5) ---- Large Storage Unit High-capacity Matter Pod (200) Advanced ECM Suite Improved Reaction Control System Hardened Light Armor Plating Peak State ------------ > --- POWER ------------ Improved Ion Engine Light Fission Core Micro Fission Core > --- PROPULSION ------- Gravmag System Improved Gravmag System Antigrav System Antigrav System Linear Gravjet > --- UTILITY ---------- Improved Sensor Array Advanced Signal Interpreter Advanced Targeting Computer Armor Integrity Analyzer Advanced ECM Suite Improved Reaction Control System Experimental Utility Shielding Hacking Suite > --- WEAPON ----------- Power Sword Power Sword Power Sword > --- INVENTORY -------- High-capacity Matter Pod Improved Reaction Control System Hardened Light Armor Plating Heavy Missile Launcher Katana [Rating: 89] Favorites ----------- Power Improved Deuterium Engine Engine Improved Deuterium Engine Power Core Micro Fission Core Propulsion Titanium Leg Treads Medium Treads Leg Titanium Leg Wheel Wheel Hover Unit Antigrav System Flight Unit Nuclear Pulse Thruster Utility Hacking Suite Device Improved Reaction Control System Storage Large Storage Unit Processor Armor Integrity Analyzer Hackware Hacking Suite Protection Power Shielding Weapon Power Sword Energy Gun Small Laser Energy Cannon Advanced Beam Cannon Ballistic Gun Assault Rifle Launcher Grenade Launcher Special Weapon Molecular Deconstructor Impact Weapon Heavy Mace Slashing Weapon Power Sword Piercing Weapon Spear Build | -11 -10 -9 -8 -7 -6 -6 -6 -5 -4 ------- Run | Yrd Mat Mat Mat Fac Fac Low Low Fac Fac Slots Evolved 12 | . . 2 2 2 2 . . 2 2 Power 2 | . . . . . . . . 1 1 Propulsion 3 | . . 2 . . . . . . 1 Utility 6 | . . . 2 2 1 . . 1 . Weapon 1 | . . . . . 1 . . . . Parts Attached 93 | 4 5 10 9 28 24 3 . 5 5 Power 12 | 1 . 2 . 4 2 . . 2 1 Engine 10 | 1 . 2 . 4 2 . . 1 . Core 2 | . . . . . . . . 1 1 Reactor . | . . . . . . . . . . Propulsion 26 | . 2 2 5 7 7 2 . 1 . Treads 1 | . . . . 1 . . . . . Leg 12 | . 2 2 5 3 . . . . . Wheel 1 | . . . . . 1 . . . . Hover 9 | . . . . 3 3 2 . 1 . Flight 3 | . . . . . 3 . . . . Utility 33 | 1 3 2 3 10 8 . . 2 4 Device 8 | . . . . 5 2 . . 1 . Storage 4 | 1 3 . . . . . . . . Processor 7 | . . . . 2 4 . . . 1 Hackware 3 | . . . . 1 . . . . 2 Protection 11 | . . 2 3 2 2 . . 1 1 Artifact . | . . . . . . . . . . Weapon 22 | 2 . 4 1 7 7 1 . . . Energy Gun 3 | 1 . 2 . . . . . . . Energy Cannon 2 | . . . 1 . 1 . . . . Ballistic Gun 5 | 1 . 1 . 3 . . . . . Ballistic Cannon . | . . . . . . . . . . Launcher 2 | . . 1 . . 1 . . . . Special Weapon 1 | . . . . . . 1 . . . Impact Weapon 3 | . . . . 2 1 . . . . Slashing Weapon 4 | . . . . . 4 . . . . Piercing Weapon 2 | . . . . 2 . . . . . Special Melee Weapon . | . . . . . . . . . . Unidentified Prototypes 8 | . . 3 1 1 1 1 . . 1 Parts Lost 51 | . . . 1 21 11 . . . 18 Power 5 | . . . . 1 1 . . . 3 Propulsion 20 | . . . . 11 4 . . . 5 Utility 20 | . . . 1 8 4 . . . 7 Weapon 6 | . . . . 1 2 . . . 3 Highest Loss Streak 18 | . . . 1 7 9 . . . 18 To Critical Strikes . | . . . . . . . . . . Average Backups 9 | 2 3 7 14 13 8 5 5 4 4 Power 1 | . 1 2 2 3 1 1 1 . . Propulsion 1 | 1 1 . 1 2 . . . . . Utility 3 | . 1 2 4 3 2 2 2 2 3 Weapon 3 | . . 2 5 4 3 2 2 2 1 Tool/Special . | . . . . . . . . . . Unused Backups 22 | . . 2 8 6 3 . . . 3 Power 6 | . . . 2 3 1 . . . . Propulsion 1 | . . . 1 . . . . . . Utility 9 | . . . 2 2 2 . . . 3 Weapon 6 | . . 2 3 1 . . . . . Tool/Special . | . . . . . . . . . . Average Slot Usage (%) 87 | . 65 91 94 91 76 90 100 98 82 Engine 7 | . 14 10 9 6 4 6 6 5 3 Leg 17 | . 8 38 36 23 . . . . . Hover 4 | . . . . . 5 17 26 23 20 Flight 1 | . . . . . 6 . . . . Device 5 | . . . . 6 1 13 13 15 12 Storage 5 | . 14 11 9 7 2 . . . . Processor 10 | . . . . 9 18 20 20 17 14 Hackware 4 | . . . . 6 6 6 6 5 4 Protection 9 | . . 8 22 10 7 6 6 5 4 Energy Gun 2 | . 14 11 3 . . . . . . Ballistic Gun 3 | . 14 10 9 2 . . . . . Impact Weapon 1 | . . . . 2 . . . . . Slashing Weapon 5 | . . . . . 12 19 20 17 12 Piercing Weapon 3 | . . . . 7 4 . . . . Peak Build Rating 89 | 4 7 19 33 47 58 64 64 75 89 Average Rating 39 | 3 4 11 26 40 44 56 64 72 71 On Entrance 34 | . 4 6 19 33 30 52 64 64 73 Avg Prop Armor Cover (%) 3 | . . . . . 3 . . . 3 Naked Turns . | . . . . . . . . . . Heaviest Build 53 | 11 26 37 46 53 43 20 19 31 38 Greatest Support 68 | 3 20 46 68 68 28 41 41 41 41 Greatest Overweight (x) 12 | 3 5 1 . 12 4 1 . . 4 Average Overweight (x) . | 2 1 . . . . . . . . Largest Inventory Capacity 15 | 8 15 15 15 15 15 5 5 5 5 Average Capacity 11 | 7 9 15 15 15 8 5 5 5 5 Most Carried 15 | 4 5 15 15 15 15 5 5 5 5 Average Carried 9 | 2 3 7 14 13 8 4 5 4 4 Final Capacity 15 | 8 15 15 15 15 5 5 5 5 5 Final Carried 15 | 3 3 12 15 15 5 5 5 5 5 Class Distribution -------------------- 87% | Mutant 12% | Scavenger-Mutant Dominant Class ---------------- Mutant | -10/Materials Mutant | -9/Materials Mutant | -8/Materials Mutant | -7/Factory Mutant | -6/Factory Mutant | -6/Lower Caves Mutant | -6/Lower Caves Mutant | -5/Factory Scavenger-Mutant | -4/Factory Resources | -11 -10 -9 -8 -7 -6 -6 -6 -5 -4 ----------- Run | Yrd Mat Mat Mat Fac Fac Low Low Fac Fac Matter Collected 1930 | 161 . 343 273 747 241 75 . 50 40 Remotely 102 | . . . . 102 . . . . . Salvage Created 3326 | . . 271 501 1359 801 53 . . 341 Parts 158 | . . 15 32 56 33 3 . . 19 Haulers Intercepted 8 | . . 1 2 3 1 . . . 1 Recyclers Shooed 2 | . . 1 . 1 . . . . . Parts Field Recycled . | . . . . . . . . . . Retrieved Matter . | . . . . . . . . . . Parts Self-Destructed 5 | . . . . . . 5 . . . Prevented . | . . . . . . . . . . Parts Restored . | . . . . . . . . . . Kills | -11 -10 -9 -8 -7 -6 -6 -6 -5 -4 ------- Run | Yrd Mat Mat Mat Fac Fac Low Low Fac Fac Combat Hostiles Destroyed 54 | . . 8 9 22 7 1 . . 7 Melee 19 | . . . . 11 4 1 . . 3 Guns 12 | . . 5 3 4 . . . . . Cannons 6 | . . . 6 . . . . . . AOE 14 | . . 3 . 4 3 . . . 4 Classes Destroyed 13 | . . 5 2 5 1 . . . . Worker 3 | . . . 1 . 2 . . . . Builder 3 | . . . . 2 1 . . . . Tunneler 1 | . . . . . 1 . . . . Hauler 8 | . . 1 2 3 1 . . . 1 Recycler 5 | . . . . 3 2 . . . . Operator 1 | . . . . 1 . . . . . Watcher 2 | . . 1 . 1 . . . . . Swarmer 15 | . . 3 3 5 . . . . 4 Grunt 15 | . . 2 2 6 2 . . . 3 Duelist 1 | . . . . 1 . . . . . Sentry 11 | . . 3 3 3 2 . . . . Hunter 6 | . . . 1 3 2 . . . . Programmer 6 | . . . . 4 1 1 . . . Best Kill Streak 7 | . . 5 5 7 5 1 . . 4 Combat Bots Only 5 | . . 4 5 4 2 1 . . 4 Max Kills in Single Turn 4 | . . 3 1 3 3 1 . . 4 Gunslinging . | . . . . . . . . . . Exploded 4 | . . 2 . 1 2 . . . 4 Melee 1 | . . . . 1 1 1 . . 1 Uniques/NPCs Destroyed . | . . . . . . . . . . Combat | -11 -10 -9 -8 -7 -6 -6 -6 -5 -4 -------- Run | Yrd Mat Mat Mat Fac Fac Low Low Fac Fac Hostile Shots Fired 958 | . . 28 50 593 110 12 9 . 156 Missed 330 | . . 4 11 207 42 8 6 . 52 Hits 628 | . . 24 39 386 68 4 3 . 104 Melee 5 | . . . . 5 . . . . . Projectile 623 | . . 24 39 381 68 4 3 . 104 Critical Strikes 22 | . . 1 2 9 2 . . . 8 Actively Blocked 2 | . . 1 . . . . . . 1 Damage Taken 8006 | . . 362 464 3851 1086 63 22 . 2158 Core 2239 | . . 72 104 634 274 5 . . 1150 Absorbed by Shields 507 | . . . . 507 . . . . . Redirected to Shielding 313 | . . 8 67 67 11 . . . 160 Core Remaining (%) 77 | 100 100 82 81 9 . . 67 100 . Volleys Fired 97 | . . 23 31 37 5 . . . 1 Largest 2 | . . 2 2 2 1 . . . 1 Hottest 95 | . . 95 91 50 68 . . . 39 Shots Fired 163 | . . 46 62 49 5 . . . 1 Gun 117 | . . 39 38 40 . . . . . Cannon 25 | . . . 24 . 1 . . . . Launcher 21 | . . 7 . 9 4 . . . 1 Special . | . . . . . . . . . . Kinetic 87 | . . 16 31 40 . . . . . Thermal 48 | . . 23 24 . 1 . . . . Explosive 21 | . . 7 . 9 4 . . . 1 Electromagnetic 7 | . . . 7 . . . . . . Robot Hit Streak 16 | . . 16 8 7 1 . . . . Robot Miss Streak 5 | . . 2 5 4 1 . . . . Penetration Max . | . . . . . . . . . . Secondary Targets 1 | . . 1 . . . . . . . Max Gunslinging Chain 1 | . . 1 . . . . . . . Shots Hit Robots 238 | . . 36 35 118 32 2 . 1 14 Core Hits 129 | . . 18 20 53 28 1 . . 9 Critical Kills . | . . . . . . . . . . Critical Parts Destroyed . | . . . . . . . . . . Critical Strikes 13 | . . . . 9 2 1 . . 1 Sever 4 | . . . . . 2 1 . . 1 Impale 9 | . . . . 9 . . . . . Melee Attacks 184 | . . . . 118 40 4 . 1 21 Impact 34 | . . . . 34 . . . . . Slashing 63 | . . . . . 37 4 . 1 21 Piercing 87 | . . . . 84 3 . . . . Sneak Attacks 12 | . . . . 5 5 . . 1 1 Combat Hostiles . | . . . . . . . . . . Follow-up Attacks 22 | . . . . 9 8 1 . . 4 Damage Inflicted 9103 | . . 758 708 4184 2242 92 . 87 1032 Guns 1466 | . . 414 321 731 . . . . . Cannons 306 | . . . 306 . . . . . . Explosions 2130 | . . 344 81 466 838 . . . 401 Melee 5167 | . . . . 2983 1404 92 . 87 601 Ramming 34 | . . . . 4 . . . . 30 Kinetic 1126 | . . 154 241 731 . . . . . Thermal 954 | . . 260 387 . . . . . 307 Explosive 1471 | . . 344 . 466 567 . . . 94 Electromagnetic 351 | . . . 80 . 271 . . . . Impact 1040 | . . . . 1040 . . . . . Slashing 2098 | . . . . . 1318 92 . 87 601 Piercing 2029 | . . . . 1943 86 . . . . Highest Corruption 16 | . . 4 . 4 . 1 1 . 16 Average Corruption 3 | . . 4 . 2 . 1 1 . 9 Corruption Purged . | . . . . . . . . . . Corruption Blocked . | . . . . . . . . . . Effects 26 | . . 3 . 19 . . . . 4 Message Errors 11 | . . 1 . 9 . . . . 1 Matter Fused 6 | . . 1 . 3 . . . . 2 Heat Flow Errors 1 | . . 1 . . . . . . . Energy Discharges 3 | . . . . 2 . . . . 1 Parts Rejected 3 | . . . . 3 . . . . . Parts Fused 1 | . . . . 1 . . . . . Data Loss (minor) 1 | . . . . 1 . . . . . Overload Shots . | . . . . . . . . . . Overflow Damage 799 | . . . 9 220 289 . . 17 264 Projectiles . | . . . . . . . . . . Explosions 331 | . . . 9 1 65 . . . 256 Melee 468 | . . . . 219 224 . . 17 8 Knockbacks 4 | . . . . 4 . . . . . Impact 4 | . . . . 4 . . . . . Kinetic . | . . . . . . . . . . Secondary . | . . . . . . . . . . Self-Inflicted Damage 284 | . . 34 39 . 27 . . . 184 Shots 6 | . . 2 1 . 1 . . . 2 Rammed 7 | . . . . . . . . . 7 Targets Rammed 9 | . . . . 2 . . . . 7 Kicked 2 | . . . . 2 . . . . . Crushed . | . . . . . . . . . . Highest Temperature 281 | . . 281 190 3 6 . . 4 32 Average Temperature 48 | . . 77 62 3 4 . . 2 10 Received Heat Transfer 1316 | . . 138 99 711 87 9 6 . 266 Siege Activations . | . . . . . . . . . . Martial Activations . | . . . . . . . . . . Shielding Activations . | . . . . . . . . . . Robots Disrupted . | . . . . . . . . . . Combat Hostiles . | . . . . . . . . . . Robots Corrupted 3 | . . . . 3 . . . . . Combat Hostiles 3 | . . . . 3 . . . . . Parts Fried 4 | . . . 1 3 . . . . . Impact Corruptions 7 | . . . . 7 . . . . . Robots Melted . | . . . . . . . . . . Combat Hostiles . | . . . . . . . . . . Parts Melted 1 | . . . 1 . . . . . . Heat Transferred 1399 | . . 594 655 . . . . . 150 Parts Sabotaged . | . . . . . . . . . . Parts Stolen . | . . . . . . . . . . Parts Stripped . | . . . . . . . . . . Power Chain Reactions 2 | . . . 1 . 1 . . . . Alert | -11 -10 -9 -8 -7 -6 -6 -6 -5 -4 ------- Run | Yrd Mat Mat Mat Fac Fac Low Low Fac Fac Maximum Alert Level 1 | . . . . 1 1 . . . 1 Low Security (%) 91 | 100 100 100 100 81 97 . . 100 96 Level 1 8 | . . . . 18 2 . . . 3 Level 2 . | . . . . . . . . . . Level 3 . | . . . . . . . . . . Level 4 . | . . . . . . . . . . Level 5 . | . . . . . . . . . . High Security . | . . . . . . . . . . Max Security . | . . . . . . . . . . Peak Influence 230 | . 2 141 151 230 207 . . 15 219 Initial 76 | . . . . 60 76 . . . . Average 76 | . . 24 39 122 88 . . . 35 Influence Increases 2149 | . 2 292 261 868 395 20 . 15 296 Destroy 0b10 Robot/C 1080 | . . 160 180 440 140 20 . . 140 Destroy 0b10 Robot/NC 115 | . . 10 15 50 35 . . . 5 Destroy Leader 320 | . . 54 64 128 52 . . . 22 Successful Hack 72 | . 2 27 . 43 . . . . . Disable Machine 210 | . . . . 15 120 . . . 75 Destroy Structure 142 | . . 41 2 27 18 . . . 54 Partial Spotted 15 | . . . . . . . . 15 . Lose Combat Pursuer 195 | . . . . 165 30 . . . . Influence Decreases 2094 | . 2 292 126 846 434 138 . 15 241 Entered New Map 201 | . . . . 75 81 45 . . . Time Decay 1354 | . 2 173 116 561 333 93 . 15 61 Lost Part 420 | . . . 10 210 20 . . . 180 Purge Threat 119 | . . 119 . . . . . . . Squads Dispatched 18 | . . . 2 9 4 . . 1 2 Investigation 2 | . . . . 1 . . . 1 . Extermination 5 | . . . . 3 1 . . . 1 Reinforcement 8 | . . . 2 2 3 . . . 1 Assault . | . . . . . . . . . . Garrison 3 | . . . . 3 . . . . . Intercept . | . . . . . . . . . . Searches Triggered . | . . . . . . . . . . Construction Impeded 2 | . . . . 1 1 . . . . Haulers Reinforced 2 | . . . . . 1 . . . 1 Active Scanning Responses . | . . . . . . . . . . Cargo Convoy Interrupts . | . . . . . . . . . . Stealth | -11 -10 -9 -8 -7 -6 -6 -6 -5 -4 --------- Run | Yrd Mat Mat Mat Fac Fac Low Low Fac Fac Distress Signals 4 | . . 1 . 2 1 . . . . Communications Jammed . | . . . . . . . . . . Distress Signals . | . . . . . . . . . . Times Spotted 104 | . 1 10 12 43 20 4 1 . 13 Peak Tracking Total 9 | . 1 4 3 9 5 3 1 1 6 Tactical Retreats 8 | . . . . 7 1 . . . . Traps | -11 -10 -9 -8 -7 -6 -6 -6 -5 -4 ------- Run | Yrd Mat Mat Mat Fac Fac Low Low Fac Fac Traps Triggered 2 | . . . . . 2 . . . . Indirectly 1 | . . . . . 1 . . . . Trap Hack Attempts . | . . . . . . . . . . Triggered . | . . . . . . . . . . Disarmed 6 | . . 6 . . . . . . . Reprogrammed . | . . . . . . . . . . Reused . | . . . . . . . . . . Traps Extracted . | . . . . . . . . . . Installed . | . . . . . . . . . . Triggered . | . . . . . . . . . . Machines | -11 -10 -9 -8 -7 -6 -6 -6 -5 -4 ---------- Run | Yrd Mat Mat Mat Fac Fac Low Low Fac Fac Machines Disabled 15 | . . . . 1 8 1 . . 5 Max in Single Turn 5 | . . . . 1 4 1 . . 5 Machines Repaired . | . . . . . . . . . . Machines Dismantled . | . . . . . . . . . . Machines Sabotaged . | . . . . . . . . . . Overloaded Fab Kills . | . . . . . . . . . . Hacking | -11 -10 -9 -8 -7 -6 -6 -6 -5 -4 --------- Run | Yrd Mat Mat Mat Fac Fac Low Low Fac Fac Machines Accessed 17 | . 4 5 1 5 1 . . 1 . Terminals 13 | . 4 4 1 3 1 . . . . Fabricators . | . . . . . . . . . . Repair Stations 2 | . . . . 2 . . . . . Recycling Units 1 | . . 1 . . . . . . . Scanalyzers 1 | . . . . . . . . 1 . Garrison Access . | . . . . . . . . . . Total Hacks 43 | . 10 15 2 12 1 . . 3 . Successful 21 | . 4 8 1 7 . . . 1 . Failed 22 | . 6 7 1 5 1 . . 2 . Catastrophic 2 | . 1 1 . . . . . . . Database Lockouts . | . . . . . . . . . . Manual 9 | . 3 4 . 1 . 1 . . . Terminals 35 | . 10 14 2 8 1 . . . . Fabricators . | . . . . . . . . . . Repair Stations 4 | . . . . 4 . . . . . Recycling Units 1 | . . 1 . . . . . . . Scanalyzers 3 | . . . . . . . . 3 . Garrison Access . | . . . . . . . . . . Terminal Hacks 16 | . 4 7 1 4 . . . . . Record 3 | . 1 2 . . . . . . . Prototype ID Bank 1 | . . . 1 . . . . . . Branch Access Points 1 | . . 1 . . . . . . . Emergency Access Points 1 | . 1 . . . . . . . . Scanalyzer Index 1 | . . . . 1 . . . . . Alert Level 1 | . . . . 1 . . . . . Unreport Threat 1 | . . 1 . . . . . . . Disarm Traps 1 | . . 1 . . . . . . . Transport Status 1 | . 1 . . . . . . . . Hauler Manifests 2 | . . 1 . 1 . . . . . Registered Components 3 | . 1 1 . 1 . . . . . Fabricator Hacks . | . . . . . . . . . . Repair Station Hacks 3 | . . . . 3 . . . . . Scan Component 2 | . . . . 2 . . . . . Repair 1 | . . . . 1 . . . . . Recycling Unit Hacks 1 | . . 1 . . . . . . . Report Inventory 1 | . . 1 . . . . . . . Scanalyzer 1 | . . . . . . . . 1 . Insert Component 1 | . . . . . . . . 1 . Garrison Access Hacks . | . . . . . . . . . . Unauthorized Hacks . | . . . . . . . . . . Terminals . | . . . . . . . . . . Fabricators . | . . . . . . . . . . Repair Stations . | . . . . . . . . . . Recycling Units . | . . . . . . . . . . Scanalyzers . | . . . . . . . . . . Garrison Access . | . . . . . . . . . . Data Cores Recovered . | . . . . . . . . . . Used . | . . . . . . . . . . Hacking Detections 13 | . 3 3 1 4 1 . . 1 . Full Trace Events 2 | . . . . 1 . . . 1 . Feedback Events . | . . . . . . . . . . Feedback Blocked . | . . . . . . . . . . Robot Schematics Acquired . | . . . . . . . . . . Robots Built . | . . . . . . . . . . Authchips . | . . . . . . . . . . Time . | . . . . . . . . . . Total Robot Build Rating . | . . . . . . . . . . Part Schematics Acquired . | . . . . . . . . . . Parts Built . | . . . . . . . . . . Authchips . | . . . . . . . . . . Time . | . . . . . . . . . . Total Part Build Rating . | . . . . . . . . . . Part Studies Acquired . | . . . . . . . . . . Parts Repaired . | . . . . . . . . . . Time 38 | . . . . 38 . . . . . Parts Recycled . | . . . . . . . . . . Recycled Matter . | . . . . . . . . . . Retrieved Matter . | . . . . . . . . . . Retrieved Components . | . . . . . . . . . . Parts Scanalyzed 1 | . . . . . . . . 1 . Part Schematics Acquired . | . . . . . . . . . . Parts Damaged 1 | . . . . . . . . 1 . Bothacking | -11 -10 -9 -8 -7 -6 -6 -6 -5 -4 ------------ Run | Yrd Mat Mat Mat Fac Fac Low Low Fac Fac Used RIF Installer . | . . . . . . . . . . Robots Hacked . | . . . . . . . . . . Non-combat . | . . . . . . . . . . Combat . | . . . . . . . . . . Robot Hacks Applied . | . . . . . . . . . . Relay Couplers Released . | . . . . . . . . . . Fabnet Peak Effective % . | . . . . . . . . . . Robots Rewired 1 | . . . . . 1 . . . . Allies Hacked . | . . . . . . . . . . Hacks Repelled . | . . . . . . . . . . Allies | -11 -10 -9 -8 -7 -6 -6 -6 -5 -4 -------- Run | Yrd Mat Mat Mat Fac Fac Low Low Fac Fac Total Allies 1 | . . . . . 1 . . . . Largest Group 1 | . . . . . 1 . . . . Highest-Rated Group 29 | . . . . . 29 . . . . Highest-Rated Ally 29 | . . . . . 29 . . . . Total Orders . | . . . . . . . . . . Ally Attacks . | . . . . . . . . . . Total Damage . | . . . . . . . . . . Kills . | . . . . . . . . . . Allies Corrupted . | . . . . . . . . . . Allies Melted . | . . . . . . . . . . Intel | -11 -10 -9 -8 -7 -6 -6 -6 -5 -4 ------- Run | Yrd Mat Mat Mat Fac Fac Low Low Fac Fac Active Infowar (turns) 966 | . . . . . 66 244 3 280 373 Optics 4 | . . . . . . . . . 4 Sensors 962 | . . . . . 66 244 3 280 369 ECM 232 | . . . . . . . . 22 210 Robot Analysis Total . | . . . . . . . . . . Derelict Logs Recovered . | . . . . . . . . . . Drone Launches . | . . . . . . . . . . Drone Recoveries . | . . . . . . . . . . Exploration | -11 -10 -9 -8 -7 -6 -6 -6 -5 -4 ------------- Run | Yrd Mat Mat Mat Fac Fac Low Low Fac Fac Turns Passed 5547 | 67 214 684 439 2141 1017 244 3 280 458 Spaces Moved 3745 | 35 117 420 231 1097 681 400 7 435 322 Core 240 | 35 67 . . 4 . . . . 134 Treads 284 | . . . . 111 173 . . . . Legs 1680 | . 50 420 231 979 . . . . . Wheels 1 | . . . . . 1 . . . . Hover 1465 | . . . . 3 432 400 7 435 188 Flight 75 | . . . . . 75 . . . . Fastest Speed 37 | 50 120 120 120 122 37 48 48 43 48 Average Speed 103 | 170 175 134 124 138 98 53 48 44 51 Slowest Speed 650 | 200 300 190 130 650 300 111 48 48 250 Overloaded Moves . | . . . . . . . . . . Propulsion Burnouts . | . . . . . . . . . . Robots Hopped . | . . . . . . . . . . Potential Cave-ins . | . . . . . . . . . . Cave-ins Triggered . | . . . . . . . . . . Exploration Rate (%) 23 | 4 18 40 27 28 18 72 4 10 10 Regions Visited 9 Branch Regions 2 Pre-discovered Areas . | . . . . . . . . . . Known Exits Taken 4 | . . . . . 1 1 1 1 . Unknown Exits Taken 5 | 1 1 1 1 1 . . . . . Scrap Searched 2 | . . . . . . 2 . . . Spaces Dug 86 | . . . . 4 1 . . . 81 Terrain Destroyed 216 | . . 65 1 47 22 . . . 81 Melee 5 | . . . . 4 1 . . . . Projectile . | . . . . . . . . . . AOE 211 | . . 65 1 43 21 . . . 81 Terrain Rammed . | . . . . . . . . . . Walls Destroyed . | . . . . . . . . . . Machines Disabled . | . . . . . . . . . . Actions | -11 -10 -9 -8 -7 -6 -6 -6 -5 -4 --------- Run | Yrd Mat Mat Mat Fac Fac Low Low Fac Fac Total 4990 | 42 127 493 326 1495 969 425 6 521 586 Wait 720 | . . 20 23 176 189 12 . 76 224 Move 3736 | 34 116 419 230 1096 680 399 6 434 322 Hop . | . . . . . . . . . . Pick Up 78 | 4 1 14 15 29 11 1 . 1 2 Fast Attach 38 | 3 3 4 3 5 10 5 . 1 4 Attach 39 | 1 2 . 1 18 12 . . 2 3 Detach 10 | . 3 1 . . 4 . . . 2 Swap 33 | . . 6 6 12 3 . . 3 3 Drop 53 | . 2 6 17 13 6 4 . 3 2 Fire 97 | . . 23 31 37 5 . . . 1 Melee 156 | . . . . 107 30 2 . 1 16 Ram 7 | . . . . . . . . . 7 Kick 2 | . . . . 2 . . . . . Crush . | . . . . . . . . . . Escape Stasis 13 | . . . . . 13 . . . . Rewire 8 | . . . . . 6 2 . . . Trap . | . . . . . . . . . . Miscellaneous . | . . . . . . . . . . Route ------- -11/Scrapyard -10/Materials -9/Materials (discovered 3 exits: *Mat / Min x2) -8/Materials -7/Factory -6/Factory -6/Lower Caves -6/Lower Caves -5/Factory -4/Factory History --------- Turn | Location | Event 12 | -11/Scrapyard | Discovered new exit (range 15) 68 | -11/Scrapyard | Entered Materials 234 | -10/Materials | Discovered new exit (range 16) 282 | -10/Materials | Entered another Materials area 282 | -9/Materials | Evolved 2 slots: Propulsion x2 304 | -9/Materials | Build established: Mutant 344 | -9/Materials | Identified exit to Mines 903 | -9/Materials | Discovered new exit (range 10) 966 | -9/Materials | Entered another Materials area 966 | -8/Materials | Evolved 2 slots: Utility x2 1330 | -8/Materials | Discovered new exit (range 14) 1405 | -8/Materials | Entered Factory 1405 | -7/Factory | Evolved 2 slots: Utility x2 1880 | -7/Factory | Lost 4 parts (1n2u1w) 2208 | -7/Factory | Garrison activated, responded to threat 2391 | -7/Factory | Lost 6 parts (3n3u) 3165 | -7/Factory | Discovered new exit (range 6) 3208 | -7/Factory | Core integrity fell below 50% 3273 | -7/Factory | Lost 7 parts (5n2u) 3475 | -7/Factory | Core integrity fell below 20% 3546 | -7/Factory | Entered another Factory area 3546 | -6/Factory | Evolved 2 slots: Utility x1, Weapon x1 3959 | -6/Factory | Lost 9 parts (1p2n4u2w) 4057 | -6/Factory | Discovered new exit (range 6) 4387 | -6/Factory | Identified exit to Lower Caves 4563 | -6/Factory | Entered Lower Caves 4593 | -6/Lower Caves | Acquired the password to a Derelict Tinkerer's latest research 4599 | -6/Lower Caves | Found Prototype Special Weapon 4599 | -6/Lower Caves | Identified Molecular Deconstructor 4687 | -6/Lower Caves | Entered a destroyed Warlord outpost 4719 | -6/Lower Caves | Caught by Unaware searching for contraband prototypes 4763 | -6/Lower Caves | Lost 3 allies 4801 | -6/Lower Caves | Discovered new exit (range 12) 4806 | -6/Lower Caves | Attracted the attention of an 0b10 checkpoint 4806 | -6/Lower Caves | Identified exit to Lower Caves 4807 | -6/Lower Caves | Entered another Lower Caves area 4807 | -6/Lower Caves | Discovered new exit (range 6) 4809 | -6/Lower Caves | Attracted the attention of an 0b10 checkpoint 4810 | -6/Lower Caves | Identified exit to Factory 4810 | -6/Lower Caves | Entered Factory 4810 | -5/Factory | Evolved 2 slots: Power x1, Utility x1 5062 | -5/Factory | Discovered new exit (range 12) 5089 | -5/Factory | Identified exit to Factory 5090 | -5/Factory | Entered another Factory area 5090 | -4/Factory | Evolved 2 slots: Power x1, Propulsion x1 5328 | -4/Factory | Build established: Scavenger-Mutant 5491 | -4/Factory | Core integrity fell below 50% 5509 | -4/Factory | Core integrity fell below 20% 5509 | -4/Factory | System corruption reached 10% 5544 | -4/Factory | Lost 18 parts (3p5n7u3w) 5548 | -4/Factory | Destroyed by P-70 Sage with Tesla Rifle Last Messages --------------- 05486_ K-01 Serf collects debris. 05489_ Slammed into P-70 Sage. 05490_ K-01 Serf collects debris. 05500_ Acquired Enh. Optical Array. 05503_ System corrupted: Energy discharge (-13). 05504_ Slammed into S-27 Virus. 05504_ Destabilizing: System interference. 05504_ Armor Integrity Analyzer temporarily disabled. 05504_ Adv. Signal Interpreter temporarily disabled. 05504_ Enh. Optical Array temporarily disabled. 05505_ Slammed into S-27 Virus. 05513_ Hacking Suite destroyed. 05513_ System corrupted by crushing effect (+1). 05513_ Destabilizing: System corrupted (+2). 05521_ P-70 Sage resets S-27 Virus, system corruption cleaned. 05523_ KUFB#Y7 PJ7A1&=5 QYL#6VH %UREV 05538_ System corrupted: Matter fused (-7). 05546_ Slammed into P-70 Sage. 05547_ ALERT: Security rotation in progress. 05547_ Slammed into P-70 Sage. Map ----- +----------------------------------------------------+ | ?????????????????????????????????????????????????? | | ?????????????????????????????????????????????????? | | ?????????????????????????????????????????????????? | | ?????????????????????????????????????????????????? | | ?????????????????????????????????????????????????? | | ?????????????????????????????????????????????????? | | ?????????????????????????????????????????????????? | | ?????????????????????????????????????????????????? | | ?????????????????????????????????????????????????? | | ?????????????????????????????????????????????????? | | ?????????????????????????????????????????????????? | | ?????????????????????????????????????????????????? | | ?????????????????????????????????????????????????? | | ?????????????????????????########????????????????? | | ?????????????????????????# #????????????????? | | ?????????????????????????# """ #????????????????? | | ?????????????????????????# """ #????????????????? | | ?????????????????????????# "S #????????????????? | | ?????????????????????????# """ #????????????????? | | ?????????????????????????# "" #????????????????? | | ????????????????????####?# #????????????????? | | ????????? ##########T ### #????????????????? | | ????????? # #????????????????? | | ???????? # s #????????????????? | | ????????? p# """ #????????????????? | | ???????? @p""" #?????????????#### | | ????????? p# """ #?????????????# | | ?????????????##k # #?????????????# | | ??????????????# ############+######### | | ??????????????+ /# | | ??????????????###### # | | ???????????????????# # | | ???????????????????# # | | ???????????????????# """ """ # | | ?????????????????######/### """ """ # | | ?????????????????# T # """ """ #### | | ?????????????????# # "" "" | | ?????????????????# # "" "" | | ?????????????????# # !! | | ?????????????????# # !! | | ?????????????????# """"" # ! | | ?????????????????# """"" # ############+##### | | ?????????????????# """ # #????# #??? | | ?????????????????# # +????#""" """ #??? | | ?????????????????#######/## #????#"R """ #??? | | ???????????????????????# #????#""" """ #??? | | ???????????????????????# #????# #??? | | ???????????????????????# #????# ! """ #??? | | ??????????????????######+####+#+#????# """ #??? | | ??????????????????# # """ #??? | +----------------------------------------------------+ Best States ------------- Heat Dissipation 43 Energy Generation 35 Energy Capacity 375 Matter Stores 300 Matter Capacity 300 Sight Range 16 Robot Scan Range 15 Terrain Scan Density 10 ECM Strength 2 Armor Coverage 450 Power Shielding 33 Utility Shielding 90 Weapon Shielding 66 Evasion (%) 66 Targeting Accuracy 8 Target Analysis 5 Armor Integrity Analysis 30 Recoil Reduction 1 Offensive Hacking 10 Item Schematics ----------------- None Robot Schematics ------------------ None Fabricated ------------ Nothing Repaired ---------- Nothing Studied --------- None Alien Tech Used ----------------- None Achievements -------------- A New Friend Deadly Force Universal Adapter Challenges ------------ None Game ------ Seed PortableProtonWings Manual? 0 Play Time 01:18:58 Cumulative 31.9 hours Start 2025.10.27 @ 23:23:47 End 2025.10.29 @ 01:46:18 Sessions 2 Manual Loads 0 Difficulty Rogue Special Mode None Game No. 45 Rogue 45 Adventurer 0 Explorer 0 Win Type - Total 0 Types 0/0/0/0/0/0/0/0/0/0 Lore% 10 Gallery% 27 Achievement% 18 Wizard Run 0 Options --------- Layout 0 ASCII 0 Keyboard 1 Movement Arrows Keybinds 0 Fullscreen 1 Font 24/Smallcaps Map View 76x50 Zoom Use 0% Tactical HUD 1 Map Filters NONE Filters NONE Steam 1 RUN: c474ab55-0700-40b7-bf71-3effd4b0cd05